Cogmind - Beta 13 @@@ ROGUE MODE // 2024.07.03 @ 13:14:00 Player: komunre Result: Destroyed by G-34 Mercenary with Small Laser Performance ------------- Evolutions (0) 0 Regions Visited (1) 200 Robots Destroyed (16) 80 Value Destroyed (371) 371 Prototype IDs (0) 0 Alien Tech Used (0) 0 Bonus (0) 0 TOTAL SCORE: 651 Bonus ------- None Cogmind --------- Core Integrity 0/250 Matter 297/300 Energy 81/100 System Corruption 2% Temperature Warm (136) Movement Hovering (236) Ox3 Location -10/Materials Parts ------- > --- POWER (1) -------- (None) > --- PROPULSION (2) --- Hover Unit Hover Unit > --- UTILITY (2) ------ High-capacity Storage Unit Sensor Array > --- WEAPON (2) ------- Beam Cannon Light Assault Rifle > --- INVENTORY (20) --- Ion Engine Light Ion Engine Light Nuclear Core Flight Unit Medium Storage Unit High-capacity Storage Unit Improved Terrain Scanner Targeting Computer Light Assault Rifle Mining Laser Peak State ------------ > --- POWER ------------ Light Ion Engine > --- PROPULSION ------- Wheel Wheel > --- UTILITY ---------- Heat Sink Improved Terrain Scanner > --- WEAPON ----------- EM Pulse Gun Light Assault Rifle > --- INVENTORY -------- Light Ion Engine Wheel Light Assault Rifle [Rating: 9] Favorites ----------- Power Light Ion Engine Engine Light Ion Engine Propulsion Wheel Wheel Wheel Hover Unit Hover Unit Flight Unit Flight Unit Utility Medium Storage Unit Device Sensor Array Storage Medium Storage Unit Processor Transport Network Coupler Weapon Light Assault Rifle Energy Gun EM Pulse Gun Energy Cannon Beam Cannon Ballistic Gun Light Assault Rifle Build | -11 -10 ------- Run | Yrd Mat Slots Evolved . | . . Power . | . . Propulsion . | . . Utility . | . . Weapon . | . . Parts Attached 26 | 7 19 Power 4 | 1 3 Engine 4 | 1 3 Core . | . . Reactor . | . . Propulsion 10 | 2 8 Treads . | . . Leg . | . . Wheel 4 | 2 2 Hover 4 | . 4 Flight 2 | . 2 Utility 6 | 2 4 Device 3 | 2 1 Storage 2 | . 2 Processor 1 | . 1 Hackware . | . . Protection . | . . Artifact . | . . Weapon 6 | 2 4 Energy Gun 2 | 1 1 Energy Cannon 2 | . 2 Ballistic Gun 2 | 1 1 Ballistic Cannon . | . . Launcher . | . . Special Weapon . | . . Impact Weapon . | . . Slashing Weapon . | . . Piercing Weapon . | . . Special Melee Weapon . | . . Unidentified Prototypes . | . . Parts Lost 7 | . 7 Power 3 | . 3 Propulsion 3 | . 3 Utility . | . . Weapon 1 | . 1 Highest Loss Streak 4 | . 4 To Critical Strikes . | . . Average Slot Usage (%) 97 | . 97 Engine 13 | . 13 Wheel 14 | . 14 Hover 3 | . 3 Flight 8 | . 8 Device 12 | . 12 Storage 10 | . 10 Processor 5 | . 5 Energy Gun 6 | . 6 Energy Cannon 2 | . 2 Ballistic Gun 18 | . 18 Naked Turns . | . . Heaviest Build 48 | 8 48 Greatest Support 20 | 20 20 Greatest Overweight (x) 3 | . 3 Average Overweight (x) . | . . Largest Inventory Capacity 20 | 5 20 Average Capacity 8 | 5 9 Most Carried 10 | 5 10 Average Carried 6 | 3 7 Final Capacity 20 | 5 20 Final Carried 10 | 4 10 Class Distribution -------------------- 88% | Mutant 11% | Scavenger-Mutant Dominant Class ---------------- Mutant | -10/Materials Resources | -11 -10 ----------- Run | Yrd Mat Matter Collected 543 | 279 264 Remotely . | . . Salvage Created 525 | 49 476 Parts 31 | 6 25 Haulers Intercepted 2 | . 2 Recyclers Shooed 1 | . 1 Parts Field Recycled . | . . Retrieved Matter . | . . Parts Self-Destructed . | . . Prevented . | . . Kills | -11 -10 ------- Run | Yrd Mat Combat Hostiles Destroyed 11 | 1 10 Guns 10 | 1 9 Cannons 1 | . 1 Classes Destroyed 5 | 2 3 Tunneler 1 | 1 . Hauler 2 | . 2 Watcher 2 | . 2 Swarmer 3 | . 3 Grunt 8 | 1 7 Best Kill Streak 4 | 1 4 Combat Bots Only 4 | 1 4 Max Kills in Single Turn 1 | 1 1 Gunslinging . | . . Exploded . | . . Melee . | . . Uniques/NPCs Destroyed . | . . Combat | -11 -10 -------- Run | Yrd Mat Hostile Shots Fired 98 | 1 97 Missed 24 | . 24 Damage Taken 812 | 10 802 Core 255 | 10 245 Absorbed by Shields . | . . Core Remaining (%) 96 | 96 . Volleys Fired 87 | 9 78 Largest 2 | 2 2 Hottest 80 | 60 80 Shots Fired 173 | 18 155 Gun 145 | 18 127 Cannon 28 | . 28 Launcher . | . . Special . | . . Kinetic 109 | 9 100 Thermal 28 | . 28 Explosive . | . . Electromagnetic 36 | 9 27 Robot Hit Streak 13 | 4 13 Robot Miss Streak 7 | 3 7 Penetration Max . | . . Secondary Targets 3 | . 3 Max Gunslinging Chain 1 | . 1 Shots Hit Robots 86 | 10 76 Core Hits 40 | 5 35 Critical Kills 1 | . 1 Critical Parts Destroyed 1 | . 1 Critical Strikes 2 | . 2 Destroy 2 | . 2 Melee Attacks . | . . Impact . | . . Slashing . | . . Piercing . | . . Sneak Attacks . | . . Combat Hostiles . | . . Follow-up Attacks . | . . Damage Inflicted 962 | 134 828 Guns 729 | 101 628 Cannons 178 | . 178 Explosions 55 | 33 22 Melee . | . . Ramming . | . . Kinetic 509 | 34 475 Thermal 233 | 33 200 Explosive . | . . Electromagnetic 220 | 67 153 Impact . | . . Slashing . | . . Piercing . | . . Highest Corruption 2 | . 2 Average Corruption 2 | . 2 Corruption Purged . | . . Corruption Blocked . | . . Effects 5 | . 5 Message Errors 3 | . 3 Matter Fused 1 | . 1 Weapon Failures 1 | . 1 Overload Shots . | . . Overflow Damage . | . . Projectiles . | . . Explosions . | . . Melee . | . . Knockbacks . | . . Impact . | . . Kinetic . | . . Secondary . | . . Self-Inflicted Damage . | . . Shots . | . . Rammed . | . . Targets Rammed . | . . Kicked . | . . Crushed . | . . Highest Temperature 340 | 40 340 Average Temperature 84 | 22 90 Received Heat Transfer 354 | 6 348 Effects 1 | . 1 Damage (minor) 1 | . 1 Siege Activations . | . . Robots Corrupted . | . . Combat Hostiles . | . . Parts Fried . | . . Impact Corruptions . | . . Robots Melted . | . . Combat Hostiles . | . . Parts Melted . | . . Heat Transferred 470 | 50 420 Parts Sabotaged . | . . Parts Stolen . | . . Parts Stripped . | . . Power Chain Reactions 2 | 1 1 Alert | -11 -10 ------- Run | Yrd Mat Peak Influence 213 | 40 213 Initial 26 | . 26 Average 83 | 16 97 Maximum Alert Level 1 | . 1 Low Security (%) 85 | 100 83 Level 1 14 | . 16 Level 2 . | . . Level 3 . | . . Level 4 . | . . Level 5 . | . . High Security . | . . Max Security . | . . Squads Dispatched 3 | . 3 Investigation . | . . Extermination . | . . Reinforcement 3 | . 3 Assault . | . . Garrison . | . . Intercept . | . . Searches Triggered . | . . Construction Impeded . | . . Haulers Reinforced . | . . Active Scanning Responses . | . . Cargo Convoy Interrupts . | . . Stealth | -11 -10 --------- Run | Yrd Mat Distress Signals 2 | . 2 Communications Jammed . | . . Distress Signals . | . . Times Spotted 23 | 1 22 Peak Tracking Total 5 | . 5 Tactical Retreats 1 | . 1 Traps | -11 -10 ------- Run | Yrd Mat Traps Triggered 1 | . 1 Indirectly . | . . Trap Hack Attempts . | . . Triggered . | . . Disarmed . | . . Reprogrammed . | . . Reused . | . . Traps Extracted . | . . Installed . | . . Triggered . | . . Machines | -11 -10 ---------- Run | Yrd Mat Machines Disabled . | . . Max in Single Turn . | . . Machines Repaired . | . . Machines Dismantled . | . . Machines Sabotaged . | . . Overloaded Fab Kills . | . . Hacking | -11 -10 --------- Run | Yrd Mat Machines Accessed 1 | . 1 Terminals . | . . Fabricators . | . . Repair Stations . | . . Recycling Units 1 | . 1 Scanalyzers . | . . Garrison Access . | . . Total Hacks 1 | . 1 Successful 1 | . 1 Failed . | . . Catastrophic . | . . Database Lockouts . | . . Manual . | . . Terminals . | . . Fabricators . | . . Repair Stations . | . . Recycling Units 1 | . 1 Scanalyzers . | . . Garrison Access . | . . Terminal Hacks . | . . Fabricator Hacks . | . . Repair Station Hacks . | . . Recycling Unit Hacks 1 | . 1 Report Inventory 1 | . 1 Scanalyzer . | . . Garrison Access Hacks . | . . Unauthorized Hacks . | . . Terminals . | . . Fabricators . | . . Repair Stations . | . . Recycling Units . | . . Scanalyzers . | . . Garrison Access . | . . Data Cores Recovered . | . . Used . | . . Hacking Detections . | . . Full Trace Events . | . . Feedback Events . | . . Feedback Blocked . | . . Robot Schematics Acquired . | . . Robots Built . | . . Authchips . | . . Time . | . . Total Robot Build Rating . | . . Part Schematics Acquired . | . . Parts Built . | . . Authchips . | . . Time . | . . Total Part Build Rating . | . . Parts Repaired . | . . Time . | . . Parts Recycled . | . . Recycled Matter . | . . Retrieved Matter . | . . Retrieved Components . | . . Parts Scanalyzed . | . . Part Schematics Acquired . | . . Parts Damaged . | . . Bothacking | -11 -10 ------------ Run | Yrd Mat Used RIF Installer . | . . Robots Hacked . | . . Non-combat . | . . Combat . | . . Robot Hacks Applied . | . . Relay Couplers Released . | . . Fabnet Peak Effective % . | . . Robots Rewired . | . . Allies Hacked . | . . Hacks Repelled . | . . Allies | -11 -10 -------- Run | Yrd Mat Total Allies . | . . Largest Group . | . . Highest-Rated Group . | . . Highest-Rated Ally . | . . Total Orders . | . . Ally Attacks . | . . Total Damage . | . . Kills . | . . Allies Corrupted . | . . Allies Melted . | . . Intel | -11 -10 ------- Run | Yrd Mat Robot Analysis Total . | . . Derelict Logs Recovered . | . . Drone Launches . | . . Drone Recoveries . | . . Exploration | -11 -10 ------------- Run | Yrd Mat Turns Passed 655 | 112 543 Spaces Moved 380 | 89 291 Core 22 | 22 . Treads . | . . Legs . | . . Wheels 264 | 67 197 Hover 15 | . 15 Flight 79 | . 79 Fastest Speed 50 | 50 80 Average Speed 89 | 72 95 Slowest Speed 236 | 80 236 Overloaded Moves . | . . Propulsion Burnouts . | . . Robots Hopped . | . . Cave-ins Triggered . | . . Exploration Rate (%) 24 | 7 41 Regions Visited 1 Branch Regions . Pre-discovered Areas . | . . Known Exits Taken . | . . Unknown Exits Taken 1 | 1 . Scrap Searched . | . . Spaces Dug . | . . Terrain Destroyed 6 | 6 . Melee . | . . Projectile . | . . AOE 6 | 6 . Terrain Rammed . | . . Walls Destroyed . | . . Machines Disabled . | . . Actions | -11 -10 --------- Run | Yrd Mat Total 539 | 121 418 Wait 9 | . 9 Move 379 | 88 291 Hop . | . . Pick Up 31 | 14 17 Fast Attach . | . . Attach 13 | 7 6 Detach . | . . Swap 13 | . 13 Drop 7 | 3 4 Fire 87 | 9 78 Melee . | . . Ram . | . . Kick . | . . Crush . | . . Escape Stasis . | . . Rewire . | . . Trap . | . . Miscellaneous . | . . Route ------- -11/Scrapyard -10/Materials History --------- Turn | Location | Event 2 | -11/Scrapyard | Met Revision 17 60 | -11/Scrapyard | Discovered new exit (range 8) 113 | -11/Scrapyard | Entered Materials 444 | -10/Materials | Lost 4 parts (1p2n1w) 584 | -10/Materials | Core integrity fell below 50% 600 | -10/Materials | Core integrity fell below 20% 656 | -10/Materials | Destroyed by G-34 Mercenary with Small Laser Last Messages --------------- ALERT: Hostiles spotted, dispatching reinforcements to Terminal M004. A-02 Transporter destroyed. K-01 Serf collects debris. Acquired Hcp. Storage Unit. G-47 Trooper suffers critical hit (Destroy). Destroyed Aluminum Leg. 8PD FXGZZIM8U5<=Q3XKA501&WAWSS6O8CL K-01 Serf collects debris. Flight Unit destroyed. System corrupted: Beam Cannon failed to cycle. G-47 Trooper destroyed. Acquired 49 matter. W-16 Scout sends out distress signal. Acquired Hcp. Storage Unit. G-34 Mercenary destroyed. Acquired 20 matter. W-16 Scout sends out distress signal. Acquired Lgt. Nuclear Core. Lgt. Ion Engine destroyed. Map ----- +----------------------------------------------------+ | ?????????????????????????????????????? | | ?????????????????????????????????????? | | ?????????????????????????????????????? | | ?????????????????????????????????????? | | ?????????????????????????????????????? | | ?????????????????????????????????????? | | ???????????????#######???????????????? | | ???????????????# ##??????????????? | | ???????????????# " ???????????????? | | ???????????????# "T * ???????????????? | | ???????????????? ????????????????? | | ???????????????? ????????????????? | | ????????????????# #########????????? | | ????????????????# ## #????????? | | ????????????????# ## """ #????????? | | ????????#???????#^ ^## """ #????????? | | ????????# ??????# ## """ #????????? | | ????????# ??????# ## """ #????????? | | ????????# ?????## ## ??????##+## | | ????????# ###### ###"######### | | ????????#o!! =%[ | | ??? + !* ! | | # # % # | | # ????###g # #T## = # | | ??????????# ###+######= ==== = # | | ??????????#% @ + ???# == = # | | ??????????# #### ??# == # | | ??????????# #??# #?# # | | ??????????# #??# #?# * # | | ??????????# #??# #?# = != # | | ??????????# #??# #?##########%! # | | ??????????# #??# ? #??????????# % + | | ??????????# #??# ?? ? #####??????# # | | ??????????# #??? ??????# / ????# # | | ??????????? ???????????# ??# # | | ??????????? ???????????# # # | | ???????????+????????????? """ + | | ??????????? ??????????????" """ # | | ??????????? ??????????????T ""??# | | ??????????? ??????????????" ????# # | | ?????????????????????????????????# # | | ?????????????????????????????????# # | | ???????????????????????????????? # | | ??????????????????????????????? # | | ??????????????????????????????T # | | ?????????????????????????????## + | | ??????????????????????????????# # | | ??????????????????????????????# # | | ??????????????????????????????# # | | ?????????????????????????????? # | +----------------------------------------------------+ Best States ------------- Heat Dissipation 35 Energy Generation 10 Energy Capacity 250 Matter Stores 300 Matter Capacity 300 Sight Range 16 Robot Scan Range 14 Terrain Scan Range 16 Terrain Scan Density 10 Evasion (%) 50 Item Schematics ----------------- None Robot Schematics ------------------ None Fabricated ------------ Nothing Alien Tech Used ----------------- None Achievements -------------- None Challenges ------------ None Game ------ Seed BiomechanicalColdDetector Manual? 0 Play Time 00:14:54 Cumulative 4.1 hours Start 2024.07.03 @ 13:00:26 End 2024.07.03 @ 13:14:00 Sessions 1 Manual Loads 0 Difficulty Rogue Special Mode None Game No. 4 Rogue 4 Adventurer 0 Explorer 0 Win Type - Total 0 Types 0/0/0/0/0/0/0/0/0 Lore% 0 Gallery% 8 Achievement% 7 Wizard Run 0 Options --------- Layout 1 ASCII 0 Keyboard 0 Movement Numpad Keybinds 0 Fullscreen 1 Font 24/Smallcaps Map View 50x35 Zoom Use 0% Tactical HUD 0 Map Filters NONE Filters NONE Steam 1 RUN: bce2b0d7-4968-49e8-9a56-4d205f4a8147